Cogmind - Beta 11 @@@ ROGUE MODE // 2022.03.28 @ 15:39:27 // Winter2019/RPGLIKE Player: nevada Result: Self-destructed Performance ------------- Evolutions (1) 500 Regions Visited (3) 600 Robots Destroyed (32) 160 Value Destroyed (792) 792 Prototype IDs (2) 40 Alien Tech Used (0) 0 Bonus (24) 24 TOTAL SCORE: 2116 Bonus ------- High Alert Combat Kills 24 Cogmind --------- Core Integrity 522/600 Matter 235/300 Energy 154/160 System Corruption 1% Temperature Hot (278) Movement Flying (28) Location -9/Materials Parts ------- > --- POWER (1) -------- Light Nuclear Core > --- PROPULSION (5) --- Flight Unit Flight Unit Flight Unit Flight Unit Flight Unit > --- UTILITY (3) ------ Signal Interpreter Improved Terrain Scanner Targeting Computer > --- WEAPON (2) ------- EM Pulse Gun Heavy EM Pulse Gun > --- INVENTORY (1) ---- Transport Network Coupler Peak State ------------ > --- POWER ------------ Light Nuclear Core > --- PROPULSION ------- Flight Unit Flight Unit Flight Unit Flight Unit Flight Unit > --- UTILITY ---------- Signal Interpreter Improved Terrain Scanner Targeting Computer > --- WEAPON ----------- EM Pulse Gun Heavy EM Pulse Gun > --- INVENTORY -------- Transport Network Coupler [Rating: 16] Favorites ----------- Power Light Ion Engine Engine Light Ion Engine Power Core Light Nuclear Core Propulsion Flight Unit Leg Aluminum Leg Flight Unit Flight Unit Utility Targeting Computer Device Structural Scanner Processor Targeting Computer Weapon EM Pulse Gun Energy Gun EM Pulse Gun Ballistic Gun Light Assault Rifle Build | -11 -10 -10 -9 ------- Run | Scr Mat Min Mat Slots Evolved 7 | . 4 1 2 Power . | . . . . Propulsion 4 | . 2 . 2 Utility 2 | . 2 . . Weapon 1 | . . 1 . Parts Attached 26 | 1 4 11 10 Power 2 | . . 2 . Engine 1 | . . 1 . Core 1 | . . 1 . Reactor . | . . . . Propulsion 10 | . . 6 4 Treads . | . . . . Leg . | . . . . Wheel . | . . . . Hover . | . . . . Flight 10 | . . 6 4 Utility 7 | . 4 1 2 Device 5 | . 2 1 2 Storage . | . . . . Processor 2 | . 2 . . Hackware . | . . . . Protection . | . . . . Artifact . | . . . . Weapon 7 | 1 . 2 4 Energy Gun 3 | 1 . . 2 Energy Cannon . | . . . . Ballistic Gun 4 | . . 2 2 Ballistic Cannon . | . . . . Launcher . | . . . . Special Weapon . | . . . . Impact Weapon . | . . . . Slashing Weapon . | . . . . Piercing Weapon . | . . . . Special Melee Weapon . | . . . . Unidentified Prototypes . | . . . . Corrupted Parts 1 | . . . 1 System Corruption 1 | . . . 1 Parts Lost 1 | . . 1 . Power . | . . . . Propulsion . | . . . . Utility . | . . . . Weapon 1 | . . 1 . Highest Loss Streak 1 | . . 1 . To Critical Strikes . | . . . . Average Slot Usage (%) 84 | . 76 88 94 Engine 9 | . 13 10 . Core 2 | . . . 9 Leg 7 | . 13 6 . Flight 16 | . . 20 37 Device 11 | . 12 11 9 Processor 21 | . 22 22 18 Energy Gun 10 | . 13 6 11 Ballistic Gun 4 | . . 8 7 Naked Turns . | . . . . Heaviest Build 11 | 5 7 8 11 Greatest Support 20 | 10 10 12 20 Greatest Overweight (x) 1 | . . 1 . Average Overweight (x) . | . . . . Largest Inventory Capacity 1 | . . 1 1 Average Capacity . | . . . 1 Most Carried 1 | . . 1 1 Average Carried . | . . . . Final Capacity 1 | . . 1 1 Final Carried 1 | . . 1 1 Class Distribution -------------------- 61% | Mutant 22% | Scavenger-Sprinter 16% | Scavenger-Mutant Dominant Class ---------------- Mutant | -10/Materials Mutant | -10/Mines Scavenger-Sprinter | -9/Materials Resources | -11 -10 -10 -9 ----------- Run | Scr Mat Min Mat Matter Collected 531 | 200 50 148 133 Remotely . | . . . . Salvage Created 899 | . 189 234 476 Parts 76 | . 13 23 40 Haulers Intercepted 2 | . . . 2 Recyclers Shooed . | . . . . Parts Field Recycled . | . . . . Retrieved Matter . | . . . . Parts Self-Destructed . | . . . . Prevented . | . . . . Kills | -11 -10 -10 -9 ------- Run | Scr Mat Min Mat Combat Hostiles Destroyed 26 | . 5 10 11 Guns 22 | . 2 10 10 AOE 3 | . 3 . . Classes Destroyed 6 | . 3 1 2 Hauler 2 | . . . 2 Operator 1 | . 1 . . Watcher 3 | . 1 . 2 Swarmer 11 | . . 7 4 Grunt 10 | . 5 3 2 Sentry 5 | . . . 5 Best Kill Streak 6 | . 5 3 6 Combat Bots Only 6 | . 4 3 6 Max Kills in Single Turn 2 | . 2 1 1 Gunslinging . | . . . . Exploded 2 | . 2 . . Melee . | . . . . Uniques/NPCs Destroyed . | . . . . Combat | -11 -10 -10 -9 -------- Run | Scr Mat Min Mat Damage Taken 1300 | . 417 444 439 Core 1041 | . 332 362 347 Absorbed by Shields . | . . . . Redirected to Core 861 | . 289 268 304 Core Remaining (%) 77 | 100 . 55 . Volleys Fired 88 | . 14 36 38 Largest 2 | . 1 2 2 Hottest 85 | . 40 40 85 Shots Fired 145 | . 14 55 76 Gun 145 | . 14 55 76 Cannon . | . . . . Launcher . | . . . . Special . | . . . . Kinetic 69 | . . 43 26 Thermal . | . . . . Explosive . | . . . . Electromagnetic 76 | . 14 12 50 Robot Hit Streak 17 | . 4 17 14 Robot Miss Streak 4 | . 2 1 4 Penetration Max . | . . . . Secondary Targets 1 | . . . 1 Max Gunslinging Chain 1 | . . . 1 Shots Hit Robots 112 | . 9 47 56 Core Hits 49 | . 8 18 23 Critical Kills . | . . . . Critical Parts Destroyed 1 | . . 1 . Critical Strikes 1 | . . 1 . Destroy 1 | . . 1 . Melee Attacks . | . . . . Impact . | . . . . Slashing . | . . . . Piercing . | . . . . Sneak Attacks . | . . . . Combat Hostiles . | . . . . Follow-up Attacks . | . . . . Damage Inflicted 1393 | . 300 395 698 Guns 1228 | . 135 395 698 Cannons . | . . . . Explosions 165 | . 165 . . Melee . | . . . . Ramming . | . . . . Kinetic 451 | . . 282 169 Thermal 165 | . 165 . . Explosive . | . . . . Electromagnetic 777 | . 135 113 529 Impact . | . . . . Slashing . | . . . . Piercing . | . . . . Highest Corruption 1 | . . . 1 Average Corruption 1 | . . . 1 Corruption Purged . | . . . . Corruption Blocked . | . . . . Overload Shots . | . . . . Overflow Damage 3 | . 3 . . Projectiles . | . . . . Explosions 3 | . 3 . . Melee . | . . . . Knockbacks . | . . . . Impact . | . . . . Kinetic . | . . . . Secondary . | . . . . Self-Inflicted Damage 91 | . 91 . . Shots 2 | . 2 . . Rammed . | . . . . Targets Rammed . | . . . . Kicked . | . . . . Crushed . | . . . . Highest Temperature 502 | . 57 65 502 Average Temperature 142 | . 31 21 185 Received Heat Transfer 546 | . 198 201 147 Effects 12 | . . . 12 Shutdowns 3 | . . . 3 Energy Bleed 1 | . . . 1 Interference 5 | . . . 5 Matter Decay 1 | . . . 1 Damage (major) 2 | . . . 2 Siege Activations . | . . . . Robots Corrupted 1 | . . . 1 Combat Hostiles 1 | . . . 1 Parts Fried 6 | . 1 . 5 Impact Corruptions . | . . . . Robots Melted . | . . . . Combat Hostiles . | . . . . Parts Melted . | . . . . Heat Transferred 200 | . 200 . . Parts Sabotaged . | . . . . Parts Stolen . | . . . . Parts Stripped . | . . . . Power Chain Reactions 2 | . 2 . . Missiles Intercepted . | . . . . Alert | -11 -10 -10 -9 ------- Run | Scr Mat Min Mat Peak Influence 481 | . 327 339 481 Initial 84 | . . 84 53 Average 194 | . 165 183 261 Maximum Alert Level 2 | . 1 1 2 Low Security (%) 52 | 100 55 58 37 Level 1 42 | . 44 41 39 Level 2 5 | . . . 22 Level 3 . | . . . . Level 4 . | . . . . Level 5 . | . . . . High Security . | . . . . Max Security . | . . . . Squads Dispatched 3 | . 2 . 1 Investigation 2 | . 2 . . Extermination . | . . . . Reinforcement 1 | . . . 1 Assault . | . . . . Garrison . | . . . . Intercept . | . . . . Searches Triggered . | . . . . Construction Impeded . | . . . . Haulers Reinforced . | . . . . Active Scanning Responses . | . . . . Cargo Convoy Interrupts . | . . . . Stealth | -11 -10 -10 -9 --------- Run | Scr Mat Min Mat Distress Signals 1 | . 1 . . Communications Jammed . | . . . . Distress Signals . | . . . . Times Spotted 56 | . 23 13 20 Peak Tracking Total 7 | . 5 3 7 Tactical Retreats 9 | . 8 1 . Traps | -11 -10 -10 -9 ------- Run | Scr Mat Min Mat Traps Triggered 2 | . 2 . . Indirectly . | . . . . Trap Hack Attempts . | . . . . Triggered . | . . . . Disarmed . | . . . . Reprogrammed . | . . . . Reused . | . . . . Traps Extracted . | . . . . Installed 1 | . . 1 . Triggered . | . . . . Machines | -11 -10 -10 -9 ---------- Run | Scr Mat Min Mat Machines Disabled 1 | . 1 . . Max in Single Turn 1 | . 1 . . Machines Sabotaged . | . . . . Garrisons Compromised . | . . . . Overloaded Fab Kills . | . . . . Hacking | -11 -10 -10 -9 --------- Run | Scr Mat Min Mat Machines Accessed 4 | . 2 . 2 Terminals 3 | . 2 . 1 Fabricators . | . . . . Repair Stations . | . . . . Recycling Units 1 | . . . 1 Scanalyzers . | . . . . Garrison Access . | . . . . Total Hacks 9 | . 4 . 5 Successful 3 | . 3 . . Failed 6 | . 1 . 5 Catastrophic . | . . . . Database Lockouts . | . . . . Manual 1 | . 1 . . Terminals 6 | . 4 . 2 Fabricators . | . . . . Repair Stations . | . . . . Recycling Units 3 | . . . 3 Scanalyzers . | . . . . Garrison Access . | . . . . Terminal Hacks 2 | . 2 . . Robot Analysis 1 | . 1 . . Prototype ID Bank 1 | . 1 . . Fabricator Hacks . | . . . . Repair Station Hacks . | . . . . Recycling Unit Hacks . | . . . . Scanalyzer . | . . . . Garrison Access Hacks . | . . . . Unauthorized Hacks 1 | . 1 . . Terminals 1 | . 1 . . Assimilate 1 | . 1 . . Fabricators . | . . . . Repair Stations . | . . . . Recycling Units . | . . . . Scanalyzers . | . . . . Garrison Access . | . . . . Data Cores Recovered 1 | . 1 . . Used 1 | . 1 . . Hacking Detections 2 | . . . 2 Full Trace Events . | . . . . Feedback Events . | . . . . Feedback Blocked . | . . . . Robot Schematics Acquired . | . . . . Robots Built . | . . . . Authchips . | . . . . Time . | . . . . Total Robot Build Rating . | . . . . Part Schematics Acquired . | . . . . Parts Built . | . . . . Authchips . | . . . . Time . | . . . . Total Part Build Rating . | . . . . Parts Repaired . | . . . . Time . | . . . . Parts Recycled . | . . . . Recycled Matter . | . . . . Retrieved Matter . | . . . . Retrieved Components . | . . . . Parts Scanalyzed . | . . . . Part Schematics Acquired . | . . . . Parts Damaged . | . . . . Bothacking | -11 -10 -10 -9 ------------ Run | Scr Mat Min Mat Used RIF Installer . | . . . . Robots Hacked . | . . . . Non-combat . | . . . . Combat . | . . . . Robot Hacks Applied . | . . . . Relay Couplers Released . | . . . . Fabnet Peak Effective % . | . . . . Robots Rewired . | . . . . Allies Hacked . | . . . . Hacks Repelled . | . . . . Allies | -11 -10 -10 -9 -------- Run | Scr Mat Min Mat Total Allies 1 | . 1 . . Largest Group 1 | . 1 . . Highest-Rated Group 10 | . 10 . . Highest-Rated Ally 10 | . 10 . . Total Orders . | . . . . Ally Attacks . | . . . . Total Damage . | . . . . Kills . | . . . . Allies Corrupted . | . . . . Allies Melted . | . . . . Intel | -11 -10 -10 -9 ------- Run | Scr Mat Min Mat Robot Analysis Total 1 | . 1 . . Derelict Logs Recovered 2 | . . 2 . Drone Launches . | . . . . Drone Recoveries . | . . . . Exploration | -11 -10 -10 -9 ------------- Run | Scr Mat Min Mat Turns Passed 1178 | 5 477 414 282 Spaces Moved 1146 | 3 331 487 325 Core . | . . . . Treads . | . . . . Legs 409 | 3 331 75 . Wheels . | . . . . Hover . | . . . . Flight 737 | . . 412 325 Fastest Speed 28 | 120 120 34 28 Average Speed 66 | 120 120 53 30 Slowest Speed 130 | 120 120 130 34 Overloaded Moves . | . . . . Propulsion Burnouts . | . . . . Robots Hopped 7 | . . 6 1 Cave-ins Triggered . | . . . . Exploration Rate (%) 53 | 1 77 96 39 Regions Visited 3 Branch Regions 1 Pre-discovered Areas . | . . . . Known Exits Taken 2 | . 1 1 . Unknown Exits Taken 1 | 1 . . . Scrap Searched 1 | . . 1 . Spaces Dug . | . . . . Terrain Destroyed 9 | . 9 . . Melee . | . . . . Projectile . | . . . . AOE 9 | . 9 . . Terrain Rammed . | . . . . Walls Destroyed . | . . . . Machines Disabled . | . . . . Actions | -11 -10 -10 -9 --------- Run | Scr Mat Min Mat Total 1419 | 4 395 584 436 Wait 104 | . 39 36 29 Move 1129 | 2 330 474 323 Hop 7 | . . 6 1 Pick Up 6 | . . 1 5 Fast Attach 14 | 1 4 7 2 Attach 2 | . . . 2 Detach . | . . . . Swap 10 | . . 4 6 Drop 15 | 1 1 6 7 Fire 88 | . 14 36 38 Melee . | . . . . Ram . | . . . . Kick . | . . . . Crush . | . . . . Escape Stasis . | . . . . Rewire . | . . . . Trap 1 | . . 1 . Miscellaneous 43 | . 7 13 23 Route ------- -11/Scrapyard -10/Materials (discovered 3 exits: *Mat x2 / *Min) -10/Mines (discovered 2 exits: *Mat x2) -9/Materials (discovered 5 exits: Mat x3 / *Min x2) History --------- Turn | Location | Event 1 | -11/Scrapyard | Discovered new exit (range 0) 6 | -11/Scrapyard | Entered Materials 58 | -10/Materials | Upgraded with Propulsion slot (x2) 58 | -10/Materials | Upgraded with Utility slot (x2) 237 | -10/Materials | Discovered new exit (range 10) 247 | -10/Materials | Identified exit to Materials 313 | -10/Materials | Discovered exit to Materials (range 4) 316 | -10/Materials | Build established: Mutant 469 | -10/Materials | Discovered new exit (range 13) 482 | -10/Materials | Identified exit to Mines 483 | -10/Materials | Entered Mines 583 | -10/Mines | Reached level 2 611 | -10/Mines | Discovered exit to Materials (range 9) 612 | -10/Mines | Upgraded with Weapon slot (x1) 626 | -10/Mines | Found a hidden stash of uninstalled traps 682 | -10/Mines | Learned Materials emergency access door positions 755 | -10/Mines | Discovered exit to Materials (range 6) 833 | -10/Mines | Learned 8 Materials zone layouts 897 | -10/Mines | Entered Materials 898 | -9/Materials | Identified exit to Materials 898 | -9/Materials | Identified exit to Mines 899 | -9/Materials | Reached level 3 901 | -9/Materials | Upgraded with Propulsion slot (x1) 976 | -9/Materials | Reached level 4 990 | -9/Materials | Upgraded with Propulsion slot (x1) 1179 | -9/Materials | Self-destructed Last Messages --------------- 01148_ EM Pulse Gun temporarily disabled. 01149_ R-06 Scavenger inserts Ion Engine into recycling unit. 01150_ Power failure, Lgt. Nuclear Core shutdown. 01150_ Acquired Flight Unit. 01152_ Dropped Flight Unit. 01152_ R-06 Scavenger inserts Corrupted Aluminum Leg into recycling unit. 01154_ Acquired 26 matter. 01155_ R-06 Scavenger inserts Structural Scanner into recycling unit. 01158_ R-06 Scavenger inserts Lgt. Assault Rifle into recycling unit. 01160_ Used Protomatter to restore core integrity (+141, depleted) 01161_ Used Protomatter to restore core integrity (+24, depleted) 01161_ R-06 Scavenger collects Flight Unit. 01163_ Integrated Corrupted Flight Unit (+1). 01163_ Dropped Flight Unit. 01164_ R-06 Scavenger inserts Flight Unit into recycling unit. 01166_ Used Protomatter to restore core integrity (+42, depleted) 01169_ Acquired 21 matter. 01170_ Dropped Sensor Array. 01170_ Acquired Imp. Terrain Scanner. [Achievement: Omniscient Cartographer] Map ----- +----------------------------------------------------+ | ?????????????????????????????????????????????????? | | ????????????????????#???????#????????????????????? | | ?????????????????? ? ????????????????????????? | | ????????????????? "T" #???????????????????##### | | ???????????? ???# #?????#?????????????##### | | ???????????? ???# #???????????????????## | | ????????????????? // #??#????????????????## | | ?????????????#???? // ###############?????## | | ?????????????????? ## #?????## | | ??? ????????????#?? ?# |#?????## | | ??? ??????????#??? ??#= !!= #????### | | ??? #############/##### !! #????### | | ?? [[+ != #????## | | ?? [ #= #????## | | ? [%+ * "" #????## | | ? !* # * """ #????## | | ? = #% "" ???#### | | ????????####+#/########## # "Y" #??######+# | | ####/#### ???????????# # """ #??## | | ## ## ??????? #??#s# #??## """ | | ?# "" ## ???????????# ##############??## """ | | ?# """ ## ???????????# #???????????????## """ | | ?# S" # ???????????# #??????????#????## """ | | ?# ## ???????????# #?#?????????????## | | ?# ## ?????????# ##########???##### | | ?# ## x ???????#@ #?####### | | ?# ## ???## r =##+###### ######## | | ?# ## #### u!*[# # =! [ ## | | ?# ## + k=[*+=""" # ## | | ## ## ########## # """ # "T" ][ + | | # #############??????????#%# """ # ]! ## | | #######??????????? ??????????#*#?? #####+###### | | ########?????????????????????#%#???####= ###### | | # #????????????????????##+########!#####???# | | # """#????????????????????#|||* #*#####???# | | # """#????????????????????#||| #=######### | | # """#?????#??????????????# [ #%######### | | + """#????????????????????# x #=[=[ | | ## ########?????????????#=! #%[![ | | ######+## ##+###???????#%""" """ # = [ | | #########!""" """ # ######### | | > + """ """ #%######### | | #####+##### ## | | ????????????????## ## """" | | ?????????????????# # """" | | ????????????????## [ + """" | | ????????#########T % # """" | | ????????# ## ] """ """ """ # """" | | ????????# # """ """ """ # """" | | ????????# """ # """ """ """ # """" | +----------------------------------------------------+ Best States ------------- Heat Dissipation 25 Energy Generation 14 Energy Capacity 160 Matter Stores 300 Matter Capacity 300 Sight Range 16 Robot Scan Range 26 Terrain Scan Density 110 ECM Strength 1 Evasion (%) 63 Targeting Accuracy 5 Item Schematics ----------------- None Robot Schematics ------------------ None Fabricated ------------ Nothing Alien Tech Used ----------------- None Achievements -------------- Omniscient Cartographer Challenges ------------ None RPGLIKE | -11 -10 -10 -9 --------- Run | Scr Mat Min Mat Levels Raised 3 | . . 1 2 XP Earned 8511 | 3000 710 1750 3051 XP Spent 7475 | . 3000 1300 3175 Upgrades 17 | . 5 4 8 Propulsion Slot 4 | . 2 . 2 Utility Slot 2 | . 2 . . Weapon Slot 1 | . . 1 . Inventory Capacity 1 | . . 1 . Sensor Range 6 | . . . 6 Terrain Scan Density 1 | . . 1 . Ranged Accuracy 2 | . 1 1 . Protomatter Created 333 | . 79 76 178 Integrity Restored 963 | . 153 276 534 Core 963 | . 153 276 534 Protomatter Decayed . | . . . . Game ------ Seed ThiefBehemothTearclaws Manual? 0 Play Time 00:18:48 Cumulative 16.7 hours Start 2022.03.28 @ 15:23:22 End 2022.03.28 @ 15:39:27 Sessions 1 Manual Loads 0 Difficulty Rogue Special Mode Winter2019/RPGLIKE Game No. 53 Rogue 49 Adventurer 4 Explorer 0 Win Type - Total 0 Types 0/0/0/0/0/0/0/0/0 Lore% 23 Gallery% 21 Achievement% 19 Wizard Run 0 Options --------- ASCII 0 Keyboard 0 Movement Mouse Keybinds 1 Fullscreen 2 Font 18/SmallcapsGlow Map View 76x50 Tactical HUD 1 Map Filters NONE Filters NONE Steam X RUN: 7af32e33-2026-4653-a704-9747ba29391f